[Event "German Bundesliga 2024-25"]
[Site "Germany"]
[Date "2024.12.01"]
[Round "4.5"]
[White "Kraus, Tomas"]
[Black "Feuerstack, Aljoscha"]
[Result "1/2-1/2"]
[Annotator "TA"]
[ECO "B45"]
[WhiteElo "2457"]
[BlackElo "2471"]
[PlyCount "154"]
[EventDate "2024.09.27"]
[EventType "team-tourn"]
[EventCountry "GER"]
[SourceTitle "playchess.com"]
[Source "ChessBase"]
[SourceQuality "1"]
[WhiteTeam "Heimbach-Weis-Neuwied"]
[BlackTeam "St. Pauli"]
[TimeControl "40/5400+30:1800+30"]

{[%evp 63,154,0,0,0,0,0,0,0,25,24,23,23,23,15,18,17,16,19,15,15,17,13,19,17,21,16,19,14,33,25,35,24,32,8,29,0,1,0,0,0,5,0,8,8,8,0,0,0,7,8,8,0,0,0,0,0,0,0,0,0,0,0,0,0,0,0,0,0,0,0,0,0,0,0,0,0,0,0,0,0,0,0,0,0,0,0,0,0,0,0,4,0,0]} 1. e4 {[%emt 0:00:19]} c5 {[%emt 0:00:17]} 2. Nf3 {[%emt 0:00:45]} e6 {[%emt 0:00:24]} 3. d4 {[%emt 0:01:04]} cxd4 {[%emt 0:00:06]} 4. Nxd4 {[%emt 0:00:05]} Nf6 {[%emt 0:00:21]} 5. Nc3 {[%emt 0:00:36]} Nc6 {[%emt 0:00:08]} 6. Ndb5 {[%emt 0:01:43]} Bb4 {[%emt 0:00:57]} 7. a3 {[%emt 0:01:27]} Bxc3+ {[%emt 0:00:07]} 8. Nxc3 {[%emt 0:00:03]} d5 {[%emt 0:00:11]} 9. exd5 {[%emt 0:02:18]} exd5 {[%emt 0:00:07]} 10. Bd3 {[%emt 0:00:26]} O-O {[%emt 0:00:17]} 11. O-O {[%emt 0:00:11]} Bg4 {[%emt 0:00:27]} 12. f3 {[%emt 0:03:03]} Bh5 {[%emt 0:00:29]} 13. Bg5 {[%emt 0:00:07] B45: Sicilian Four Knights.} Qb6+ {[%emt 0:00:15]} 14. Kh1 {[%emt 0:00:11]} Ne4 {[%emt 0:00:09]} 15. Nxe4 {[%emt 0:00:12]} dxe4 {[%emt 0:00:07]} 16. Bxe4 {[%emt 0:00:03]} Qxb2 {[%emt 0:00:09]} 17. Qb1 $1 {[%emt 0:00:05] 17.Qb1 scores better than 17.Rb1.} Qb6 {[%emt 0:00:48]} 18. Qxb6 {[%emt 0:00:19]} axb6 {[%emt 0:00:08]} 19. Rfb1 {[%emt 0:00:15]} Bg6 {[%emt 0:00:27]} 20. Bxg6 {[%emt 0:13:59]} hxg6 {[%emt 0:00:16]} 21. Rxb6 {[%emt 0:00:14]} Nd4 {[%emt 0:00:36]} 22. c3 {[%emt 0:00:41]} Nc2 {[%emt 0:00:43]} 23. Rc1 {[%emt 0:02:03]} Nxa3 {[%emt 0:05:06]} 24. Rxb7 {[%emt 0:01:58]} f6 {[%emt 0:19:00]} 25. Bf4 {[%emt 0:10:25]} g5 {[%emt 0:13:58]} 26. Bg3 {[%emt 0:08:18]} Nc4 {[%emt 0:09:10]} 27. Rc7 $146 {[%emt 0:04:32]} ({Predecessor:} 27. h3 Rf7 28. Rb4 Rc8 29. Rcb1 Rc6 30. Bf2 Re7 31. Bd4 Re2 32. Ra1 Nd6 33. Ra5 {½-½ Rogic,D (2435)-Saric,L (2170) CRO-chT1A 31st 2023 (5.6)}) 27... Rfc8 {[%emt 0:04:51]} 28. Rxc8+ {[%emt 0:00:05]} Rxc8 {[%emt 0:00:04]} 29. Kg1 {[%emt 0:00:49]} Nb2 {[%emt 0:19:26]} 30. Kf1 {[%emt 0:16:00]} Nd3 {[%emt 0:01:22]} 31. Rc2 {[%emt 0:00:19]} Nb4 {[%emt 0:06:41]} 32. Rb2 {[%emt 0:00:33]} (32. cxb4 $2 Rxc2 33. Bf2 Kf7 $17) 32... Nd5 {[%emt 0:00:05]} 33. Be1 {[%emt 0:01:16]} Ne3+ {[%emt 0:02:25]} 34. Kg1 {[%emt 0:00:05]} Ra8 {[%emt 0:01:06]} 35. Re2 {[%emt 0:01:51]} Nd5 {[%emt 0:02:55]} 36. Kf2 {[%emt 0:11:21]} Nf4 {[%emt 0:10:22]} 37. Rd2 {[%emt 0:01:13]} Ra1 {[%emt 0:03:00]} 38. Rd8+ {[%emt 0:04:37]} Kf7 {[%emt 0:00:12]} 39. Bd2 {[%emt 0:00:41]} Ke7 {[%emt 0:02:00]} 40. Rd4 {[%emt 0:01:55]} Ra2 {[%emt 0:00:22]} 41. g3 {[%emt 0:33:28]} Ng6 {[%emt 0:02:40]} 42. Ke2 {[%emt 0:00:00]} Ra8 {[%emt 0:04:45]} 43. h4 {[%emt 0:00:00]} gxh4 {[%emt 0:00:20]} 44. gxh4 {[%emt 0:00:00]} Ke6 {[%emt 0:03:51]} 45. Rb4 {[%emt 0:00:00]} Ra2 {[%emt 0:01:20]} 46. h5 {[%emt 0:00:00]} Ne5 {[%emt 0:00:47]} 47. f4 {[%emt 0:00:00]} Nd7 {[%emt 0:01:10]} 48. Re4+ {[%emt 0:00:00]} Kf7 {[%emt 0:02:30]} 49. Rd4 {[%emt 0:00:00]} Nc5 {[%emt 0:03:04]} 50. Rb4 {[%emt 0:06:54]} f5 {[%emt 0:02:08]} 51. Ke3 {[%emt 0:02:13]} (51. Rb5 Ne4 52. Rxf5+ (52. Rb7+ $2 Ke6 $19) 52... Kg8 $15) 51... Ne4 {[%emt 0:00:58]} 52. Rd4 {[%emt 0:01:07]} Nf6 {[%emt 0:00:48]} 53. c4 {[%emt 0:00:54]} Nxh5 {[%emt 0:00:24]} 54. Rd7+ {[%emt 0:01:59]} Ke6 {[%emt 0:04:30]} 55. Rd5 {[%emt 0:00:09]} Ng3 {[%emt 0:02:00]} 56. Re5+ {[%emt 0:00:45]} Kd7 {[%emt 0:01:18]} 57. Kf3 {[%emt 0:01:54]} Ne4 {[%emt 0:01:25]} 58. Bb4 {[%emt 0:00:31]} g6 {[%emt 0:01:23]} 59. Re7+ {[%emt 0:00:24]} Kc8 {[%emt 0:00:29]} 60. Rg7 {[%emt 0:00:43]} Rb2 {[%emt 0:01:55]} 61. Be1 {[%emt 0:00:54]} Rb6 {[%emt 0:00:47]} 62. Ke3 {[%emt 0:01:09]} Nc5 {[%emt 0:01:41]} 63. Bh4 {[%emt 0:01:06]} Rb3+ {[%emt 0:00:25]} 64. Kd2 {[%emt 0:01:19]} Rd3+ {[%emt 0:00:32]} 65. Ke2 {[%emt 0:00:25]} Rd6 {[%emt 0:00:39]} 66. Rg8+ {[%emt 0:00:46]} Kc7 {[%emt 0:00:22]} 67. Bf2 {[%emt 0:00:26]} Ne4 {[%emt 0:00:56]} 68. Ba7 {[%emt 0:00:18]} Re6 {[%emt 0:00:32]} 69. Bb8+ {[%emt 0:00:30]} Kb7 {[%emt 0:00:16]} 70. Kd3 {[%emt 0:00:30]} Nf6 {[%emt 0:01:21]} 71. Rd8 {[%emt 0:00:14]} Re4 {[%emt 0:00:21]} 72. Be5 {[%emt 0:00:48]} Ng4 {[%emt 0:00:32]} 73. Bd4 {[%emt 0:00:41]} Rxf4 {[%emt 0:00:31]} 74. Rg8 {[%emt 0:00:33]} Rf3+ {[%emt 0:00:13]} 75. Ke2 {[%emt 0:00:08]} Rf4 {[%emt 0:00:27]} 76. Kd3 {[%emt 0:00:06]} Rf3+ {[%emt 0:00:48]} 77. Ke2 {[%emt 0:00:04]} Rf4 {[%emt 0:00:55]} 1/2-1/2

[Event "German Bundesliga 2024-25"]
[Site "Germany"]
[Date "2024.12.01"]
[Round "4.6"]
[White "Stevic, Hrvoje"]
[Black "Blohberger, Felix"]
[Result "1/2-1/2"]
[Annotator "TA"]
[ECO "B11"]
[WhiteElo "2548"]
[BlackElo "2536"]
[PlyCount "47"]
[EventDate "2024.09.27"]
[EventType "team-tourn"]
[EventCountry "GER"]
[SourceTitle "playchess.com"]
[Source "ChessBase"]
[SourceQuality "1"]
[WhiteTeam "Kirchweyhe"]
[BlackTeam "Bayern Muenchen"]
[TimeControl "40/5400+30:1800+30"]

{[%evp 10,47,26,14,21,10,25,16,24,21,26,18,25,24,16,21,16,16,30,12,21,13,12,12,17,12,12,4,13,13,15,0,0,0,0,0,15,0,0,0]} 1. e4 {[%emt 0:00:05]} c6 {[%emt 0:00:10]} 2. Nf3 {[%emt 0:01:59]} d5 {[%emt 0:00:51]} 3. Nc3 {[%emt 0:01:00]} Bg4 {[%emt 0:01:24]} 4. h3 {[%emt 0:00:20]} Bxf3 {[%emt 0:00:06]} 5. Qxf3 {[%emt 0:00:07]} e6 {[%emt 0:00:14]} 6. Be2 {[%emt 0:02:24]} Nf6 {[%emt 0:00:38]} 7. O-O {[%emt 0:01:19]} Be7 {[%emt 0:03:02]} 8. d4 {[%emt 0:03:23]} dxe4 {[%emt 0:02:51]} 9. Qe3 {[%emt 0:00:44]} O-O {[%emt 0:02:21]} 10. Nxe4 {[%emt 0:00:24]} Nxe4 {[%emt 0:00:33]} 11. Qxe4 {[%emt 0:00:06]} Nd7 {[%emt 0:00:21][%cal Bb8d7,Bd7f6,Bf6d5][%mdl 32]} 12. c3 {[%emt 0:05:45]} a5 {[%emt 0:05:23]} 13. a4 {[%emt 0:02:39]} Nf6 {[%emt 0:01:13]} 14. Qc2 {[%emt 0:01:43]} Nd5 {[%emt 0:00:53] The position is equal.} 15. Qb3 {[%emt 0:02:06]} Rb8 {[%emt 0:03:11]} 16. Bf3 {[%emt 0:02:20]} Bg5 {[%emt 0:01:54]} 17. Bxg5 {[%emt 0:01:50]} Qxg5 {[%emt 0:00:07]} 18. Rfe1 {[%emt 0:00:49]} Rfd8 {[%emt 0:02:38]} 19. Re5 {[%emt 0:04:33]} Qe7 {[%emt 0:03:21]} 20. Bxd5 {[%emt 0:02:04]} Rxd5 {[%emt 0:00:23]} 21. Rxd5 {[%emt 0:00:28]} exd5 {[%emt 0:01:18]} 22. Qb6 {[%emt 0:00:50]} Qd8 {[%emt 0:00:17]} 23. Qxd8+ {[%emt 0:00:09]} Rxd8 {[%emt 0:00:02]} 24. Kf1 {[%emt 0:00:14] Not much happened in this game.   Weighted Error Value: White=0.05 (flawless) /Black=0.05 (flawless) .  OK:         	White=4     	Black=6} 1/2-1/2

[Event "German Bundesliga 2024-25"]
[Site "Germany"]
[Date "2024.12.01"]
[Round "4.6"]
[White "Costa, Leonardo"]
[Black "Krastev, Alexander"]
[Result "1/2-1/2"]
[Annotator "RC"]
[ECO "B45"]
[WhiteElo "2501"]
[BlackElo "2425"]
[PlyCount "60"]
[EventDate "2024.09.27"]
[EventType "team-tourn"]
[EventCountry "GER"]
[SourceTitle "playchess.com"]
[Source "ChessBase"]
[SourceQuality "1"]
[WhiteTeam "Hamburg"]
[BlackTeam "SG Solingen"]
[TimeControl "40/5400+30:1800+30"]

1. e4 {[%emt 0:00:02]} c5 {[%emt 0:00:06]} 2. Nf3 {[%emt 0:00:03]} e6 {[%emt 0:00:12]} 3. d4 {[%emt 0:00:03]} cxd4 {[%emt 0:00:05]} 4. Nxd4 {[%emt 0:00:04]} Nf6 {[%emt 0:00:07]} 5. Nc3 {[%emt 0:00:03]} Nc6 {[%emt 0:00:04]} 6. Ndb5 {[%emt 0:00:18]} Bb4 {[%emt 0:00:14]} 7. a3 {[%emt 0:00:05]} Bxc3+ {[%emt 0:00:05]} 8. Nxc3 {[%emt 0:00:03]} d5 {[%emt 0:00:06]} 9. exd5 {[%emt 0:00:03]} exd5 {[%emt 0:00:06]} 10. Bd3 {[%emt 0:00:03]} O-O {[%emt 0:00:10]} 11. O-O {[%emt 0:00:03]} Bg4 {[%emt 0:00:05]} 12. f3 {[%emt 0:00:03]} Bh5 {[%emt 0:00:04]} 13. Bg5 {[%emt 0:00:08]} Qb6+ {[%emt 0:00:06]} 14. Kh1 {[%emt 0:00:02]} Ne4 {[%emt 0:00:04]} 15. Nxe4 {[%emt 0:00:05]} dxe4 {[%emt 0:00:03]} 16. Bxe4 {[%emt 0:00:04]} Qxb2 {[%emt 0:00:06]} 17. Qb1 {[%emt 0:00:02]} Qb6 {[%emt 0:00:07]} 18. Qxb6 {[%emt 0:00:34]} axb6 {[%emt 0:00:06]} 19. Rfb1 {[%emt 0:00:06]} Bg6 {[%emt 0:00:14]} 20. Bxg6 {[%emt 0:14:15]} hxg6 {[%emt 0:00:06]} 21. Rxb6 {[%emt 0:00:03]} Nd4 {[%emt 0:00:11]} 22. c3 {[%emt 0:00:22]} Nc2 {[%emt 0:00:04]} 23. Rc1 {[%emt 0:00:05]} Rfe8 {[%emt 0:00:06]} 24. h4 {[%emt 0:08:53]} Ne1 {[%emt 0:00:08]} 25. Rd1 {[%emt 0:29:55]} Rxa3 {[%emt 0:04:09]} 26. Rbb1 {[%emt 0:13:16]} Nc2 {[%emt 0:56:59]} 27. Rxb7 {[%emt 0:02:55]} Rxc3 {[%emt 0:19:02]} 28. Rdd7 {[%emt 0:00:04]} Rf8 {[%emt 0:00:07]} 29. Bf4 {[%emt 0:01:24]} Rcc8 {[%emt 0:02:55]} 30. Bg5 {[%emt 0:10:20]} Rc4 {[%emt 0:03:06]} 1/2-1/2

[Event "German Bundesliga 2024-25"]
[Site "Germany"]
[Date "2024.12.01"]
[Round "4.6"]
[White "Neuman, Petr"]
[Black "Banusz, Tamas"]
[Result "1/2-1/2"]
[Annotator "TA"]
[ECO "A13"]
[WhiteElo "2426"]
[BlackElo "2576"]
[PlyCount "120"]
[EventDate "2024.09.27"]
[EventType "team-tourn"]
[EventCountry "GER"]
[SourceTitle "playchess.com"]
[Source "ChessBase"]
[SourceQuality "1"]
[WhiteTeam "Bad Mergentheim"]
[BlackTeam "Deizisau"]
[TimeControl "40/5400+30:1800+30"]

{[%evp 9,120,22,25,4,2,0,5,-18,0,0,-10,-13,0,0,12,0,28,0,36,20,45,22,38,0,14,10,45,20,15,0,15,10,4,0,7,0,12,-14,0,0,-6,-8,0,0,11,0,8,-8,26,0,0,-5,0,0,0,0,24,11,8,6,15,30,31,25,23,39,114,114,113,0,7,0,0,0,0,0,0,0,0,0,0,0,0,0,0,0,0,0,0,0,8,8,8,0,0,0,0,0,0,0,0,0,0,0,0,0,0,0,0,0,0,0,0]} 1. Nf3 {[%emt 0:00:06]} Nf6 {[%emt 0:00:36]} 2. c4 {[%emt 0:00:08]} e6 {[%emt 0:00:21]} 3. g3 {[%emt 0:00:15]} a6 {[%emt 0:07:20]} 4. Bg2 {[%emt 0:02:21]} b5 {[%emt 0:00:33]} 5. b3 {[%emt 0:01:51]} Bb7 {[%emt 0:01:19]} 6. Na3 {[%emt 0:03:05][%cal Bb1a3,Ba3c4,Bc4e5][%mdl 32]} bxc4 {[%emt 0:11:18]} 7. Nxc4 {[%emt 0:00:17]} a5 {[%emt 0:00:30]} 8. Nce5 {[%emt 0:00:30][%cal Oe5f7]} Qc8 {[%emt 0:07:34]} 9. Bb2 {[%emt 0:09:46]} Be7 {[%emt 0:09:28]} 10. Rc1 {[%emt 0:02:36]} d6 {[%emt 0:00:22]} 11. Nc4 {[%emt 0:00:32] Black must now prevent Bxf6.} Nc6 {[%emt 0:10:04]} 12. a3 {[%emt 0:04:58]} h6 {[%emt 0:05:24]} 13. O-O {[%emt 0:00:00]} O-O {[%emt 0:00:30]} 14. d3 {[%emt 0:00:00]} Qb8 {[%emt 0:10:12]} 15. Rc2 {[%emt 0:02:32]} Rc8 {[%emt 0:02:45]} 16. Qa1 {[%emt 0:01:09]} Ne8 {[%emt 0:00:44]} 17. Rfc1 {[%emt 0:10:49]} Bf6 {[%emt 0:02:11]} 18. Bxf6 {[%emt 0:00:30]} Nxf6 {[%emt 0:00:53]} 19. Nfd2 Ne7 {[%emt 0:03:20]} 20. Bxb7 {[%emt 0:08:30]} Qxb7 {[%emt 0:00:30]} 21. d4 {[%emt 0:00:30]} Qb5 {[%emt 0:00:30]} 22. e3 {[%emt 0:00:30]} Qf5 {[%emt 0:00:30]} 23. f3 {[%emt 0:07:54]} Qb5 24. Qc3 {[%emt 0:03:33]} Ne8 {[%emt 0:01:25]} 25. Qd3 {[%emt 0:00:35]} Qb7 {[%emt 0:03:04]} 26. Nb2 {[%emt 0:01:26]} Qa7 {[%emt 0:00:50]} 27. Kg2 {[%emt 0:01:02]} Rab8 {[%emt 0:05:37]} 28. e4 {[%emt 0:00:30][%cal Be3e4,Be4e5][%mdl 32]} Nf6 {[%emt 0:02:58]} 29. Nbc4 {[%emt 0:04:42]} Nd7 30. Ne3 {[%emt 0:04:12]} c6 31. Nec4 {[%emt 0:06:50]} d5 {[%emt 0:08:35]} 32. Nd6 {[%emt 0:00:00]} Rd8 {[%emt 0:00:18]} 33. e5 {[%emt 0:00:00]} c5 {[%emt 0:01:46]} 34. f4 {[%emt 0:00:00][%cal Rd4c5]} a4 {[%emt 0:00:55] [#] ...axb3 would now be deadly.} 35. dxc5 {[%emt 0:03:49][%cal Bd4c5,Bc5c6][%mdl 32]} axb3 {[%emt 0:00:00]} 36. Nxb3 {[%emt 0:00:00]} Qxa3 {[%emt 0:00:00]} 37. Nb5 {[%emt 0:00:00]} Qa6 {[%emt 0:01:18]} ({Black should try} 37... Rxb5 $1 $14 38. Qxb5 Rb8) 38. N3d4 $16 {[%emt 0:00:00] [#] And now c6 would win. White is more active.} Nf5 {[%emt 0:02:08]} 39. Nxf5 {[%emt 0:05:09]} (39. Qe2 $16) 39... exf5 $11 {[%emt 0:00:01] The position is equal.} 40. c6 {[%emt 0:00:19]} Qxb5 {[%emt 0:01:14]} 41. Qxf5 {[%emt 0:32:45][%cal Oe5e6] e6! is the strong threat.} g6 {[%emt 0:09:40]} 42. Qg4 {[%emt 0:00:00][%cal Oc6c7] aiming for c7!} Rbc8 {[%emt 0:01:13]} 43. cxd7 {[%emt 0:00:00]} Rxc2+ {[%emt 0:00:07]} 44. Rxc2 {[%emt 0:00:00]} Qxd7 {[%emt 0:00:16]} 45. Qxd7 {[%emt 0:00:00]} Rxd7 {[%emt 0:00:09][%mdl 4096] Endgame. KR-KR} 46. Kf3 {[%emt 0:00:00]} Ra7 {[%emt 0:01:56]} 47. Ke3 {[%emt 0:00:00]} Ra4 {[%emt 0:01:34]} 48. Rd2 {[%emt 0:00:00]} Ra5 {[%emt 0:00:09]} 49. Kd4 {[%emt 0:00:00]} h5 {[%emt 0:00:48]} 50. Rf2 {[%emt 0:00:00]} Kg7 {[%emt 0:00:49]} 51. f5 {[%emt 0:00:00]} gxf5 {[%emt 0:00:20]} 52. Rxf5 {[%emt 0:00:00]} Kg6 {[%emt 0:00:24]} 53. Rf6+ {[%emt 0:00:00]} Kg7 {[%emt 0:00:06]} 54. Rf3 {[%emt 0:00:00]} Kg6 {[%emt 0:01:01]} 55. h4 {[%emt 0:00:00]} Kg7 {[%emt 0:00:40]} 56. Rf5 {[%emt 0:00:00]} Kg6 {[%emt 0:00:23]} 57. Rf6+ {[%emt 0:00:00]} Kg7 {[%emt 0:00:19]} 58. Rf5 {[%emt 0:00:00]} Kg6 {[%emt 0:00:05]} 59. Rf6+ {[%emt 0:00:00]} Kg7 {[%emt 0:00:05]} 60. Rf5 {[%emt 0:00:00]} Kg6 {[%emt 0:00:05] Weighted Error Value: White=0.10 (very precise) /Black=0.08 (flawless) .  Mistake:       	White=1     	Black=1      Inaccurate:     	White=4     	Black=4      OK:         	White=14    	Black=23     Best:        	White=1     	Black=7} 1/2-1/2

[Event "German Bundesliga 2024-25"]
[Site "Germany"]
[Date "2024.12.01"]
[Round "4.6"]
[White "Sawatzki, Frank"]
[Black "Kosakowski, Jakub"]
[Result "0-1"]
[Annotator "TA"]
[ECO "B92"]
[WhiteElo "2346"]
[BlackElo "2516"]
[PlyCount "102"]
[EventDate "2024.09.27"]
[EventType "team-tourn"]
[EventCountry "GER"]
[SourceTitle "playchess.com"]
[Source "ChessBase"]
[SourceQuality "1"]
[WhiteTeam "St. Pauli"]
[BlackTeam "Heimbach-Weis-Neuwied"]
[TimeControl "40/5400+30:1800+30"]

{[%evp 17,102,0,13,-6,3,7,20,30,30,13,14,10,31,0,19,12,0,0,0,31,25,4,0,0,52,41,45,-7,-1,-60,-50,-144,-135,-314,-354,-388,-376,-395,-183,-168,-188,-181,-185,-172,-172,-190,-178,-193,-206,-208,-207,-213,-200,-197,-194,-289,-171,-169,-145,-243,-226,-347,-345,-309,-250,-247,-233,-411,-383,-447,-437,-443,-383,-429,-442,-448,-444,-444,-449,-380,-430,-506,-489,-736,-718,-967,-953]} 1. e4 {[%emt 0:00:03]} c5 {[%emt 0:00:12]} 2. Nf3 {[%emt 0:00:05]} d6 {[%emt 0:00:07]} 3. d4 {[%emt 0:00:04]} cxd4 {[%emt 0:00:08]} 4. Nxd4 {[%emt 0:00:04]} Nf6 {[%emt 0:00:08]} 5. Nc3 {[%emt 0:00:04]} a6 {[%emt 0:00:08]} 6. Be2 {[%emt 0:00:22]} e5 {[%emt 0:00:14]} 7. Nb3 {[%emt 0:00:40]} Be7 {[%emt 0:00:21]} 8. O-O {[%emt 0:00:09]} O-O {[%emt 0:00:13]} 9. Qd3 {[%emt 0:00:09]} Be6 {[%emt 0:02:14]} 10. Nd5 {[%emt 0:02:34]} Bxd5 {[%emt 0:08:52]} 11. exd5 {[%emt 0:00:06]} Nbd7 {[%emt 0:00:10]} 12. Bd2 {[%emt 0:08:11] The position is equal.} Re8 {[%emt 0:14:22]} 13. c4 {[%emt 0:03:49]} a5 {[%emt 0:00:46]} 14. a4 {[%emt 0:24:27]} Bf8 {[%emt 0:08:23]} 15. Kh1 {[%emt 0:06:47]} g6 {[%emt 0:04:49]} 16. Rae1 {[%emt 0:10:17]} Bg7 {[%emt 0:01:16]} 17. g4 {[%emt 0:26:20]} e4 {[%emt 0:09:08]} 18. Qe3 {[%emt 0:01:22]} h6 {[%emt 0:01:52]} 19. Nd4 {[%emt 0:01:15]} Ne5 {[%emt 0:01:58]} 20. h3 {[%emt 0:00:21]} Rc8 {[%emt 0:07:55]} ({Black should play} 20... Nh7 $11) 21. b3 $14 {[%emt 0:00:24]} Nfd7 {[%emt 0:00:09]} 22. Rg1 {[%emt 0:03:04]} ({Weaker is} 22. Qxe4 Nxc4 $17) (22. Nb5 $14 Nc5 23. Qg3) 22... Nc5 $11 {[%emt 0:02:03]} 23. Bc3 {[%emt 0:01:15]} (23. Rgf1 $11) 23... Ned3 $15 {[%emt 0:05:38]} 24. Bxd3 {[%emt 0:01:54]} (24. Rb1 $15) 24... exd3 $17 {[%emt 0:00:14]} 25. Qxe8+ {[%emt 0:00:25] Loses the game.} (25. Qd2 $17 {keeps fighting.}) 25... Qxe8 $19 {[%emt 0:00:12]} 26. Rxe8+ {[%emt 0:00:09]} Rxe8 {[%emt 0:00:00]} 27. Kg2 {[%emt 0:03:48][%cal Og1d1]} Nxb3 {[%emt 0:09:40]} (27... Bxd4 $142 28. Bxd4 Nxb3) 28. Nxb3 {[%emt 0:00:02]} Bxc3 {[%emt 0:00:07][%mdl 4096] Endgame. KRB-KRN} 29. Rd1 {[%emt 0:00:07] [#]} Rc8 $1 {[%emt 0:00:11]} 30. c5 {[%emt 0:00:11]} dxc5 {[%emt 0:00:06]} 31. Rxd3 {[%emt 0:00:03]} Bb4 {[%emt 0:00:06] Threatens to win with ...c4.} 32. Rd1 {[%emt 0:00:13]} Kf8 {[%emt 0:03:37]} 33. Na1 {[%emt 0:00:33]} Ke7 {[%emt 0:04:01]} 34. Nc2 {[%emt 0:00:04]} Kd6 {[%emt 0:03:20]} 35. Kf3 {[%emt 0:02:08]} c4 {[%emt 0:00:11]} 36. Ke4 {[%emt 0:01:10]} (36. Ne3 {is a better defense.}) 36... c3 {[%emt 0:02:13]} (36... Bc5 $142 37. Kf4 Bxf2) 37. Ne3 {[%emt 0:00:34]} Ba3 {[%emt 0:08:19]} 38. Nc2 {[%emt 0:01:50]} (38. Kd3 $17) 38... Bc5 {[%emt 0:00:32]} 39. Rd3 {[%emt 0:02:06]} (39. f3 {was worth a try.}) 39... Re8+ {[%emt 0:04:12]} ({Less strong is} 39... Bxf2 40. Rf3 Bh4 41. Rxf7 $17) 40. Kf3 {[%emt 0:00:07]} Bb4 {[%emt 0:00:06]} 41. Rd1 {[%emt 0:31:22]} Kc5 {[%emt 0:07:12] Hoping for ...Kc4.} 42. Rd4 {[%emt 0:00:00]} (42. Ne3) 42... b5 {[%emt 0:11:43]} 43. axb5 {[%emt 0:00:00]} Kxb5 {[%emt 0:00:03]} 44. d6 {[%emt 0:00:00]} Rd8 {[%emt 0:01:28]} 45. d7 {[%emt 0:00:00]} Bc5 {[%emt 0:00:27]} 46. Rd1 {[%emt 0:00:00]} Kc6 {[%emt 0:00:32]} 47. Rd3 {[%emt 0:00:00]} Rxd7 {[%emt 0:00:32]} 48. Rxc3 {[%emt 0:00:00]} Rd2 {[%emt 0:00:26]} 49. Ne3 {[%emt 0:00:00] Black is clearly winning.} a4 {[%emt 0:00:43] aiming for ...a3.} 50. Rc4 {[%emt 0:00:00]} (50. Nc2 $142) 50... Kb5 {[%emt 0:00:40] [#] Strongly threatening ...Bxe3.} 51. Re4 {[%emt 0:00:00]} a3 {[%emt 0:00:18] Weighted Error Value: White=0.45/Black=0.17 (very precise) .  Loses game:     	White=1     	---        Mistake:       	White=8     	Black=3      Inaccurate:     	White=1     	---        OK:         	White=12    	Black=20     Best:        	White=3     	Black=2      Strong:       	---       	Black=1} 0-1

[Event "German Bundesliga 2024-25"]
[Site "Germany"]
[Date "2024.12.01"]
[Round "4.7"]
[White "Dautov, Rustem"]
[Black "Vlasak, Lukas"]
[Result "1/2-1/2"]
[Annotator "TA"]
[ECO "D35"]
[WhiteElo "2568"]
[BlackElo "2458"]
[PlyCount "57"]
[EventDate "2024.09.27"]
[EventType "team-tourn"]
[EventCountry "GER"]
[SourceTitle "playchess.com"]
[Source "ChessBase"]
[SourceQuality "1"]
[WhiteTeam "Deizisau"]
[BlackTeam "Bad Mergentheim"]
[TimeControl "40/5400+30:1800+30"]

{[%evp 21,57,20,23,18,20,25,26,28,53,38,57,41,43,41,42,42,41,37,39,34,39,27,29,32,32,12,120,110,116,127,127,2,18,15,12,17,14,18]} 1. d4 {[%emt 0:00:03]} d5 {[%emt 0:00:16]} 2. c4 {[%emt 0:00:09]} e6 {[%emt 0:00:18]} 3. Nf3 {[%emt 0:00:14]} Nf6 {[%emt 0:00:16]} 4. Nc3 {[%emt 0:00:16]} h6 {[%emt 0:00:14]} 5. cxd5 {[%emt 0:12:11]} exd5 {[%emt 0:00:12]} 6. Bf4 {[%emt 0:00:08]} Bd6 {[%emt 0:00:16]} 7. Bxd6 {[%emt 0:00:11]} Qxd6 {[%emt 0:00:12]} 8. e3 {[%emt 0:00:21]} O-O {[%emt 0:06:04]} 9. Qc2 {[%emt 0:01:51]} c6 {[%emt 0:04:14]} 10. Bd3 {[%emt 0:00:37]} Nbd7 {[%emt 0:02:57]} 11. O-O {[%emt 0:13:19]} Re8 {[%emt 0:03:15]} 12. Rab1 {[%emt 0:01:09]} a5 {[%emt 0:00:59]} 13. a3 {[%emt 0:00:54]} Nb6 {[%emt 0:09:56]} 14. h3 {[%emt 0:07:50] White has an edge.} Bd7 {[%emt 0:11:10]} 15. Ne5 {[%emt 0:09:07]} c5 {[%emt 0:05:41]} 16. Nxd7 {[%emt 0:07:44]} Nbxd7 {[%emt 0:00:38]} 17. Nb5 {[%emt 0:00:09]} Qb6 {[%emt 0:01:42] ...c4 would now be deadly.} 18. dxc5 {[%emt 0:00:31]} Nxc5 {[%emt 0:00:50]} 19. Rfc1 {[%emt 0:04:10]} Nxd3 {[%emt 0:03:26]} 20. Qxd3 {[%emt 0:00:17]} Rac8 {[%emt 0:01:09] Prevents Nc7} 21. a4 {[%emt 0:03:15]} Rc5 {[%emt 0:08:13]} 22. Rxc5 {[%emt 0:21:33]} Qxc5 {[%emt 0:00:32]} 23. Qd2 {[%emt 0:00:01]} Rc8 {[%emt 0:09:20]} (23... Ne4 $1 $11 {remains equal.} 24. Qd3 (24. Qxa5 Nxf2 25. Qd2 Ne4 $15) 24... Rc8) 24. Qxa5 $16 {[%emt 0:03:13]} Ne4 {[%emt 0:02:39][%cal Oe4f2]} 25. Qe1 $1 {[%emt 0:02:57]} Qc2 {[%emt 0:02:02] [#]} 26. Nc3 {[%emt 0:04:06]} Nxc3 {[%emt 0:03:19] The position is equal.} (26... Nxf2 $5 27. Qxf2 Rxc3 28. Qxc2 Rxc2 $11) 27. bxc3 {[%emt 0:00:07]} Rxc3 {[%emt 0:00:53]} 28. Rxb7 {[%emt 0:00:42] Hoping for Qb1.} Rd3 $1 {[%emt 0:00:20]} 29. Rb1 {[%emt 0:03:56] Prevents Rd1.   Weighted Error Value: White=0.17 (very precise) /Black=0.16 (very precise) .  Mistake:       	White=1     	Black=1      OK:         	White=6     	Black=3      Best:        	White=1     	---        Strong:       	White=1     	Black=1} 1/2-1/2